bitfinex/quotes_BTCUSD_20240820
["timestamp","ask_amount","ask_price","bid_price","bid_amount"]
[1724180421743,0.0175812,59318.0,59317.0,0.8206484]
[1724180423020,0.0175812,59318.0,59317.0,0.2811744]
[1724180423235,0.0175812,59318.0,59317.0,0.1463064]
[1724180423684,0.0175812,59318.0,59317.0,0.2811744]
[1724180423886,0.0175812,59318.0,59317.0,0.1463064]
[1724180424723,0.0175812,59318.0,59317.0,0.2811744]
[1724180425220,0.0175812,59318.0,59317.0,0.55428256]
[1724180425696,0.0175812,59318.0,59317.0,0.82401956]
[1724180426341,0.0175812,59318.0,59317.0,0.8206484]
[1724180426577,0.0175812,59318.0,59317.0,0.4850114]
[1724180426804,0.0175812,59318.0,59317.0,0.2152744]
[1724180427246,0.03321755,59318.0,59317.0,0.0009064]
[1724180428091,0.03321663,59318.0,59317.0,0.0009064]
[1724180429996,0.03321663,59318.0,59317.0,0.1357744]
[1724180430200,0.03321663,59318.0,59317.0,0.0009064]
[1724180430609,0.03321663,59318.0,59317.0,0.2120744]
[1724180430821,0.03321663,59318.0,59317.0,0.4818114]
[1724180431223,0.03321663,59318.0,59317.0,0.7515484]
[1724180431443,0.03321663,59318.0,59317.0,0.4818114]
[1724180431670,0.03321663,59318.0,59317.0,0.7515484]
[1724180432154,0.0175812,59318.0,59317.0,1.4551854]
[1724180432382,0.03321515,59318.0,59317.0,0.2120744]
[1724180432729,0.03321515,59318.0,59317.0,0.7515484]
[1724180433536,0.03321515,59318.0,59317.0,1.3905854]
[1724180433758,0.03321515,59318.0,59317.0,1.59534394]
[1724180434004,0.0175812,59318.0,59317.0,1.86708094]
[1724180434241,0.0175812,59318.0,59317.0,1.86508094]
[1724180434510,0.0175812,59318.0,59317.0,1.7259224]
[1724180434982,0.0175812,59318.0,59317.0,1.7299224]
[1724180435187,0.0175812,59318.0,59317.0,1.7259224]
[1724180436850,0.0175812,59318.0,59317.0,1.0858854]
[1724180439010,0.03321965,59318.0,59317.0,1.0858854]
[1724180439218,0.03321965,59318.0,59317.0,0.8161484]
[1724180440061,0.03321984,59318.0,59317.0,0.8161484]
[1724180443048,0.03321984,59318.0,59317.0,1.0858854]
[1724180443470,0.03321984,59318.0,59317.0,0.8161484]
[1724180444163,0.0332283,59318.0,59317.0,0.8161484]
[1724180444374,0.0332283,59318.0,59317.0,0.1357744]
[1724180444618,0.0332283,59318.0,59317.0,0.0009064]
[1724180444847,0.0332283,59318.0,59317.0,0.1357744]
[1724180445471,0.0332283,59318.0,59317.0,0.0009064]
[1724180448009,0.03323322,59318.0,59317.0,0.0009064]
[1724180448637,0.03323322,59318.0,59317.0,0.1357744]
[1724180448848,0.03323322,59318.0,59317.0,0.7545484]
[1724180449262,0.03323322,59318.0,59317.0,0.8194484]
[1724180449468,0.03323322,59318.0,59317.0,1.0891854]
[1724180449683,0.03323322,59318.0,59317.0,1.23074464]
[1724180449896,0.03323322,59318.0,59317.0,1.0891854]
[1724180450097,0.0175812,59318.0,59317.0,1.0901854]
[1724180450303,0.0175812,59318.0,59317.0,1.0891854]
[1724180450731,0.0175812,59318.0,59317.0,1.0901854]
[1724180451362,0.03323835,59318.0,59317.0,1.0901854]
[1724180451578,0.0175812,59318.0,59317.0,1.0901854]
[1724180451784,0.03323901,59318.0,59317.0,1.0901854]
[1724180451989,0.03324125,59318.0,59317.0,1.22914394]
[1724180452198,0.03324328,59318.0,59317.0,1.0901854]
[1724180452393,0.03324344,59318.0,59317.0,1.0891854]
[1724180453425,0.03324574,59318.0,59317.0,1.0891854]
[1724180457340,0.03324574,59318.0,59317.0,1.0901854]
[1724180457510,0.03324574,59318.0,59317.0,1.0921854]
[1724180457713,0.03324574,59318.0,59317.0,1.23114394]
[1724180457920,0.03324574,59318.0,59317.0,1.0921854]
[1724180458116,0.03324574,59318.0,59317.0,1.0901854]
[1724180458447,0.03324574,59318.0,59317.0,1.0891854]
[1724180458663,0.03324574,59318.0,59317.0,1.0901854]
[1724180458866,0.03324574,59318.0,59317.0,1.0921854]
[1724180459080,0.03324574,59318.0,59317.0,1.25616418]
[1724180459267,0.03324574,59318.0,59317.0,1.52590118]
[1724180459440,0.03324436,59318.0,59317.0,1.52790118]
[1724180460228,0.0175812,59318.0,59317.0,1.3599224]
[1724180460428,0.03324466,59318.0,59317.0,0.1357744]
[1724180460608,0.03324466,59318.0,59317.0,0.0009064]
[1724180461830,0.10888606,59318.0,59317.0,0.0009064]
[1724180462027,0.03324466,59318.0,59317.0,0.0009064]
[1724180462671,0.21835795,59318.0,59317.0,0.0009064]
[1724180463162,0.24665879,59318.0,59317.0,0.0009064]
[1724180465426,0.06154618,59318.0,59317.0,0.0009064]
[1724180465631,0.04588204,59318.0,59317.0,0.0009064]
[1724180465834,0.16220109,59318.0,59317.0,0.0009064]
[1724180466265,0.16217813,59318.0,59317.0,0.0009064]
[1724180467088,0.16212386,59318.0,59317.0,0.0009064]
[1724180467508,0.22103762,59318.0,59317.0,0.0009064]
[1724180467796,0.16214358,59318.0,59317.0,0.0009064]
[1724180468617,0.06143572,59318.0,59317.0,0.0009064]
[1724180468747,0.13695969,59318.0,59317.0,0.0009064]
[1724180470353,0.0175812,59318.0,59317.0,0.0009064]
[1724180470601,0.06145521,59318.0,59317.0,0.0009064]
[1724180471517,0.13698836,59318.0,59317.0,0.0009064]
[1724180472120,0.11181242,59318.0,59317.0,0.0009064]
[1724180472368,0.06145521,59318.0,59317.0,0.4055114]
[1724180472572,0.06145521,59318.0,59317.0,0.1357744]
[1724180472815,0.03321136,59318.0,59317.0,0.1357744]
[1724180473020,0.06145521,59318.0,59317.0,0.4055114]
[1724180473220,0.03321136,59318.0,59317.0,0.4055114]
[1724180473422,0.0175812,59318.0,59317.0,0.4055114]
[1724180473626,0.06145521,59318.0,59317.0,0.4055114]
[1724180474259,0.0175812,59318.0,59317.0,0.4055114]
[1724180474474,0.01563035,59318.0,59317.0,0.4055114]
[1724180474685,0.05035676,59321.0,59319.0,0.134863]
[1724180474885,0.04387482,59320.0,59319.0,0.134863]
[1724180475687,0.09423158,59320.0,59319.0,0.134863]
[1724180475918,0.05035676,59320.0,59319.0,0.134863]
[1724180476121,0.06598715,59320.0,59319.0,0.134863]
[1724180476323,0.04387479,59320.0,59319.0,0.134863]
[1724180476534,0.04387479,59320.0,59319.0,0.404591]
[1724180476740,0.04387479,59320.0,59319.0,0.134863]
[1724180478544,0.04387479,59320.0,59319.0,0.404591]
[1724180478768,0.02824307,59321.0,59319.0,0.539456]
[1724180478966,0.02824307,59322.0,59321.0,0.134859]
[1724180479168,0.01562998,59322.0,59321.0,0.134859]
[1724180479579,0.01562998,59322.0,59320.0,0.134861]
[1724180479784,0.02824307,59322.0,59321.0,0.134859]
[1724180479958,0.01563,59322.0,59321.0,0.134859]
[1724180480170,0.01563,59322.0,59321.0,0.404577]
[1724180480371,0.01563,59322.0,59321.0,0.79866665]
[1724180481204,0.01563,59322.0,59321.0,0.944013]
[1724180482422,0.01563,59322.0,59321.0,0.945013]
[1724180482629,0.01563,59322.0,59321.0,0.947013]
[1724180483288,0.01563,59322.0,59321.0,0.949013]
[1724180483483,0.01563,59322.0,59321.0,0.945013]
[1724180483676,0.01563,59322.0,59321.0,1.08338494]
[1724180484419,0.01563,59322.0,59321.0,0.945013]
[1724180484646,0.0332112,59322.0,59321.0,0.945013]
[1724180486612,0.03320762,59322.0,59321.0,0.945013]
[1724180486816,0.03320762,59322.0,59321.0,0.949013]
[1724180487425,0.0175812,59322.0,59321.0,0.949013]
[1724180488740,0.000822,59330.0,59329.0,0.946887]
[1724180488940,0.000822,59330.0,59329.0,1.380787]
[1724180489145,0.000822,59330.0,59329.0,0.943887]
[1724180489347,0.000822,59330.0,59329.0,0.674205]
[1724180489770,0.01644997,59330.0,59329.0,0.8057449]
[1724180489991,0.01644965,59330.0,59329.0,0.8057449]
[1724180490214,0.01644965,59330.0,59329.0,0.674205]
[1724180490639,0.01644965,59330.0,59329.0,0.943887]
[1724180492317,0.000822,59330.0,59329.0,0.943887]
[1724180494391,0.00031035,59330.0,59329.0,0.943887]
[1724180495965,0.00031035,59330.0,59329.0,1.028087]
[1724180496172,0.00031035,59330.0,59329.0,1.1586357]
[1724180499146,0.00031035,59330.0,59329.0,1.4283177]
[1724180499274,0.00031035,59330.0,59329.0,1.4892177]
[1724180499476,0.00031035,59330.0,59329.0,1.4912177]
[1724180499702,0.00031035,59330.0,59329.0,1.4932177]
[1724180501436,0.000822,59337.0,59336.0,1.020875]
[1724180501674,0.000824,59346.0,59336.0,0.775303]
[1724180501883,0.000824,59346.0,59345.0,0.943631]
[1724180502025,0.01645509,59346.0,59345.0,0.943631]
[1724180502232,0.01645509,59346.0,59345.0,0.944631]
[1724180502233,0.000824,59346.0,59345.0,0.944631]
[1724180502435,0.000824,59346.0,59345.0,1.2402063]
[1724180502888,0.000824,59346.0,59345.0,1.5118153]
[1724180503334,0.000824,59346.0,59345.0,1.5138153]
[1724180503543,0.05893141,59353.0,59352.0,1.387823]
[1724180503686,0.05893141,59353.0,59352.0,1.389823]
[1724180503896,0.05893141,59353.0,59352.0,1.5288053]
[1724180504553,0.05893141,59353.0,59352.0,1.7983833]
[1724180504953,0.49229154,59369.0,59368.0,0.699657]
[1724180505195,0.50792365,59369.0,59368.0,0.699657]
[1724180505377,0.0826,59370.0,59368.0,0.564905]
[1724180505579,0.03,59373.0,59371.0,0.134745]
[1724180505876,0.01562167,59372.0,59371.0,0.134745]
[1724180506025,0.01562167,59372.0,59369.0,0.4876895]
[1724180506231,0.01562167,59371.0,59369.0,0.4876895]
[1724180506432,0.03,59373.0,59369.0,0.4876895]
[1724180506433,0.01562167,59370.0,59369.0,0.4876895]
[1724180506656,0.01562212,59372.0,59369.0,0.40525]
[1724180506860,0.1467,59380.0,59379.0,0.134727]
[1724180507081,0.16232277,59380.0,59379.0,0.134727]
[1724180507232,0.1467,59380.0,59379.0,0.134727]
[1724180507861,0.03,59384.0,59379.0,0.134727]
[1724180507862,0.0773,59383.0,59379.0,0.134726]
[1724180509314,0.0773,59383.0,59380.0,0.134725]
[1724180511827,0.0773,59383.0,59378.0,0.269459]
[1724180512022,0.0092,59388.0,59371.0,0.2964]
[1724180512023,0.0092,59388.0,59372.0,0.0792]
[1724180512222,0.0156209,59387.0,59372.0,0.0792]
[1724180512433,0.0773,59383.0,59371.0,0.2954]
[1724180512632,0.0773,59383.0,59371.0,0.430144]
[1724180512633,0.0625,59382.0,59371.0,0.430144]
[1724180512832,0.0625,59382.0,59372.0,0.134743]
[1724180513059,0.0625,59382.0,59372.0,0.00336793]
[1724180513256,0.0625,59382.0,59375.0,0.269473]
[1724180513523,0.0625,59382.0,59378.0,0.134729]
[1724180513725,0.0625,59382.0,59376.0,0.134734]
[1724180514065,0.0625,59382.0,59377.0,0.134731]
[1724180514554,0.0625,59382.0,59374.0,0.269477]
[1724180514756,0.03,59378.0,59374.0,0.134738]
[1724180514955,0.0773,59377.0,59374.0,0.134738]
[1724180515085,0.0773,59377.0,59371.0,0.2954]
[1724180515298,0.0773,59377.0,59372.0,0.134742]
[1724180515299,0.0723,59377.0,59372.0,0.134742]
[1724180519056,0.0723,59377.0,59373.0,0.13474]
[1724180520445,0.0723,59377.0,59374.0,0.134737]
[1724180521012,0.0795,59381.0,59374.0,0.096911]
[1724180521330,0.0795,59381.0,59372.0,0.00336787]
[1724180521331,0.01561808,59380.0,59378.0,0.134729]
[1724180521528,0.0795,59381.0,59378.0,0.134729]
[1724180521734,0.01561836,59380.0,59378.0,0.134729]
[1724180521978,0.01561823,59379.0,59378.0,0.134729]
[1724180522185,0.01561823,59379.0,59376.0,0.134732]
[1724180522388,0.01561823,59378.0,59377.0,0.134731]
[1724180523603,0.0625,59382.0,59381.0,0.134723]
[1724180523825,0.03,59384.0,59381.0,0.134722]
[1724180524040,0.01561812,59383.0,59382.0,0.13472]
[1724180524261,0.01561812,59383.0,59382.0,0.673602]
[1724180524900,0.01561812,59383.0,59382.0,0.404161]
[1724180525313,0.01561812,59383.0,59382.0,0.673602]
[1724180525518,0.01561812,59383.0,59382.0,0.404161]
[1724180526375,0.01561812,59383.0,59382.0,1.0094181]
[1724180526555,0.0092,59388.0,59382.0,0.6052571]
[1724180526797,0.0092,59388.0,59386.0,0.134711]
[1724180526798,0.01561348,59387.0,59386.0,0.134711]
[1724180527228,0.0092,59388.0,59386.0,0.134711]
[1724180527433,0.01561368,59387.0,59386.0,0.404134]
[1724180527654,0.0092,59388.0,59382.0,0.3358161]
[1724180527883,0.0092,59388.0,59375.0,0.269473]
[1724180527884,0.0635,59384.0,59375.0,0.269473]
[1724180528090,0.01561366,59383.0,59376.0,0.269467]
[1724180528294,0.01561366,59382.0,59376.0,0.00336779]
[1724180528515,0.0635,59384.0,59378.0,0.269459]
[1724180528723,0.0635,59384.0,59377.0,0.269463]
[1724180528724,0.01561246,59383.0,59380.0,0.134725]
[1724180528899,0.0635,59384.0,59379.0,0.134727]
[1724180528900,0.01561246,59382.0,59379.0,0.134727]
[1724180529125,0.01561246,59381.0,59379.0,0.134727]
[1724180529275,0.0635,59384.0,59380.0,0.134725]
[1724180529476,0.01560776,59383.0,59380.0,0.134725]
[1724180529824,0.01560776,59382.0,59380.0,0.134725]
[1724180530030,0.01560776,59381.0,59380.0,0.134725]
[1724180531497,0.0635,59384.0,59377.0,0.269463]
[1724180531714,0.05887815,59382.0,59380.0,0.134725]
[1724180531916,0.0635,59384.0,59380.0,0.134725]
[1724180532126,0.05888492,59382.0,59380.0,0.134725]
[1724180532322,0.01560392,59381.0,59380.0,0.134725]
[1724180532541,0.01642492,59381.0,59380.0,0.134725]
[1724180533096,0.07530984,59381.0,59380.0,0.134725]
[1724180533714,0.07530984,59381.0,59380.0,0.404175]
[1724180533917,0.07530984,59381.0,59380.0,0.4661128]
[1724180534119,0.01642492,59381.0,59380.0,0.4661128]
[1724180534357,0.01642492,59381.0,59380.0,0.1966628]
[1724180534569,0.01642492,59381.0,59380.0,0.134725]
[1724180534770,0.000821,59381.0,59380.0,0.134725]
[1724180534889,0.01642158,59381.0,59380.0,0.134725]
[1724180535086,0.01642158,59381.0,59380.0,0.404175]
[1724180537312,0.07527939,59381.0,59380.0,0.943075]
[1724180537530,0.01642158,59381.0,59380.0,1.0816425]
[1724180537956,0.01642158,59381.0,59380.0,1.1638425]
[1724180539510,0.01641745,59381.0,59380.0,1.1638425]
[1724180539683,0.01641745,59381.0,59380.0,1.1648425]
[1724180540089,0.01641745,59381.0,59380.0,1.1668425]
[1724180540555,0.01641745,59381.0,59380.0,1.4362925]
[1724180540759,0.01641745,59381.0,59380.0,1.5002925]
[1724180541110,0.01641745,59381.0,59380.0,1.4982925]
[1724180541287,0.01641745,59381.0,59380.0,1.5002925]
[1724180541509,0.000821,59381.0,59380.0,1.5002925]
[1724180542719,0.000821,59381.0,59380.0,1.55746702]
[1724180542920,0.000821,59381.0,59380.0,1.55946702]
[1724180543274,0.000821,59381.0,59380.0,1.5002925]
[1724180543688,0.000821,59381.0,59380.0,1.5022925]
[1724180544041,0.000821,59381.0,59380.0,1.4982925]
[1724180544380,0.000821,59381.0,59380.0,1.089275]
[1724180544777,0.000821,59381.0,59380.0,1.026275]
[1724180545792,0.01640945,59381.0,59380.0,0.755825]
[1724180547273,0.000821,59381.0,59380.0,0.755825]
[1724180547877,0.01641513,59381.0,59380.0,0.755825]
[1724180548492,0.01641513,59381.0,59380.0,1.1648738]
[1724180549920,0.01641513,59381.0,59380.0,0.8944238]
[1724180550129,0.01641513,59381.0,59380.0,0.8954238]
[1724180550280,0.01641513,59381.0,59380.0,0.756825]
[1724180550489,0.01641513,59381.0,59380.0,0.755825]
[1724180550690,0.01641513,59381.0,59378.0,0.134728]
[1724180550890,0.01559413,59380.0,59379.0,0.134727]
[1724180551119,0.000821,59381.0,59380.0,0.134725]
[1724180551527,0.01641756,59381.0,59380.0,0.134725]
[1724180553526,0.01641756,59381.0,59380.0,0.404175]
[1724180554198,0.01641756,59381.0,59380.0,0.5280251]
[1724180554773,0.01641756,59381.0,59380.0,0.7974751]
[1724180555201,0.01641936,59381.0,59380.0,0.7974751]
[1724180555400,0.01641936,59381.0,59380.0,1.0669251]
[1724180555556,0.01641885,59381.0,59380.0,1.2093251]
[1724180556994,0.01641885,59381.0,59380.0,1.085475]
[1724180557208,0.01641885,59381.0,59380.0,1.086475]
[1724180557576,0.01642095,59381.0,59380.0,1.32865]
[1724180557770,0.000821,59381.0,59380.0,1.32865]
[1724180557976,0.000821,59381.0,59380.0,1.49462878]
[1724180558215,0.000821,59381.0,59380.0,1.49262878]
[1724180558420,0.000821,59381.0,59380.0,1.0592]
[1724180558625,0.01642087,59381.0,59380.0,1.0592]
[1724180558813,0.01642087,59381.0,59380.0,0.64635]
[1724180560769,0.01642087,59381.0,59380.0,0.9158]
[1724180561389,0.01642087,59381.0,59380.0,1.14695661]
[1724180561619,0.01642087,59381.0,59380.0,1.21035661]
[1724180561929,0.01642087,59381.0,59380.0,1.0621]
[1724180564808,0.01642087,59381.0,59380.0,0.9987]
[1724180565033,0.01642087,59381.0,59380.0,0.9977]
[1724180565245,0.01642087,59381.0,59380.0,0.9158]
[1724180566581,0.000821,59381.0,59380.0,0.9158]
[1724180566916,0.01642427,59381.0,59380.0,0.97567075]
[1724180567135,0.01642427,59381.0,59380.0,0.9158]
[1724180568117,0.01642427,59381.0,59380.0,0.9168]
[1724180568594,0.01642427,59381.0,59380.0,0.9922]
[1724180569717,0.01642427,59381.0,59380.0,1.26365]
[1724180569924,0.01642427,59381.0,59380.0,1.32855]
[1724180570065,0.000821,59381.0,59380.0,1.49252878]
[1724180570745,0.000821,59381.0,59380.0,1.59252878]
[1724180571043,0.000821,59381.0,59380.0,1.59452878]
[1724180571959,0.000821,59381.0,59380.0,1.62833878]
[1724180574343,0.0092,59388.0,59387.0,1.357685]
[1724180574560,0.0092,59388.0,59387.0,1.8848535]
[1724180574753,0.0092,59388.0,59387.0,1.749085]
[1724180576016,0.0092,59388.0,59387.0,1.684185]
[1724180581581,0.0092,59388.0,59387.0,1.686185]
[1724180581786,0.0092,59388.0,59387.0,1.688185]
[1724180583353,0.0092,59388.0,59387.0,2.019504]
[1724180583555,0.0092,59388.0,59387.0,2.18348278]
[1724180586360,0.17024,59390.0,59389.0,1.217345]
[1724180586565,0.17024,59390.0,59389.0,1.399045]
[1724180589096,0.00824,59390.0,59389.0,1.399045]
[1724180589300,0.00824,59397.0,59396.0,1.025523]
[1724180589510,0.00824,59397.0,59396.0,1.7551533]
[1724180589925,0.00824,59397.0,59396.0,1.7591533]
[1724180590955,0.00824,59397.0,59396.0,1.7551533]
[1724180591157,0.00824,59397.0,59396.0,1.8551533]
[1724180591728,0.00824,59397.0,59396.0,1.8571533]
[1724180591931,0.00824,59397.0,59396.0,1.8591533]
[1724180592132,0.00824,59397.0,59396.0,1.8551533]
[1724180592344,0.00824,59397.0,59396.0,1.8591533]
[1724180592494,0.00824,59397.0,59396.0,1.8693964]
[1724180594429,0.00824,59397.0,59396.0,1.608601]
[1724180594592,0.00824,59397.0,59396.0,1.339223]
[1724180594798,0.00824,59397.0,59396.0,0.968845]
[1724180595574,0.00824,59397.0,59396.0,0.969845]
[1724180595783,0.00824,59397.0,59396.0,1.239223]
[1724180595985,0.00824,59397.0,59396.0,1.3633453]
[1724180596191,0.00824,59397.0,59396.0,1.4273453]
[1724180597455,0.00824,59397.0,59396.0,1.239223]
[1724180601111,0.00824,59397.0,59396.0,1.238223]
[1724180601307,0.02385501,59397.0,59396.0,1.239223]
[1724180602126,0.02385501,59397.0,59396.0,0.969845]
[1724180602552,0.02385501,59397.0,59396.0,1.239223]
[1724180604045,0.08925501,59397.0,59396.0,0.968845]
[1724180604258,0.08925501,59397.0,59382.0,0.2964]
[1724180604259,0.0756,59396.0,59382.0,0.2964]
[1724180604483,0.0654,59394.0,59387.0,0.269418]
[1724180604683,0.05892482,59392.0,59388.0,0.134706]
[1724180604890,0.0756,59390.0,59389.0,0.134704]
[1724180605104,0.09121551,59390.0,59389.0,0.134704]
[1724180606202,0.15661551,59390.0,59389.0,0.134704]
[1724180607500,0.15661211,59390.0,59389.0,0.134704]
[1724180609021,0.15661211,59390.0,59389.0,0.404114]
[1724180610109,0.15661211,59390.0,59389.0,0.673524]
[1724180610560,0.01561211,59390.0,59389.0,0.673524]
[1724180612282,0.1437,59392.0,59391.0,0.404101]
[1724180612495,0.15931287,59392.0,59391.0,0.404101]
[1724180613558,0.1437,59392.0,59391.0,0.404101]
[1724180613780,0.15931284,59392.0,59391.0,0.404101]
[1724180614638,0.01561284,59392.0,59391.0,1.0397941]
[1724180614844,0.01561284,59392.0,59391.0,1.1161941]
[1724180615066,0.00824,59397.0,59391.0,1.1161941]
[1724180615067,0.00824,59397.0,59396.0,0.942823]
[1724180615283,0.00824,59397.0,59396.0,0.673445]
[1724180615499,0.02385455,59397.0,59396.0,0.673445]
[1724180615928,0.00824,59397.0,59396.0,0.673445]
[1724180616147,0.02385482,59397.0,59396.0,0.673445]
[1724180619716,0.02385482,59397.0,59396.0,0.404067]
[1724180619929,0.0771,59395.0,59389.0,0.2703142]
[1724180620143,0.0771,59390.0,59389.0,0.1356072]
[1724180620355,0.09271482,59390.0,59389.0,0.2703142]
[1724180620573,0.09271482,59390.0,59389.0,0.0009042]
[1724180621060,0.09271482,59390.0,59389.0,0.4050192]
[1724180622140,0.09270685,59390.0,59389.0,0.4050192]
[1724180623248,0.01560685,59390.0,59389.0,0.4050192]
[1724180623463,0.01560685,59390.0,59389.0,0.74187232]
[1724180623899,0.01560685,59390.0,59389.0,0.6744292]
[1724180624117,0.14,59390.0,59389.0,0.0009042]
[1724180624341,0.15560818,59390.0,59389.0,0.0009042]
[1724180624790,0.21451102,59390.0,59389.0,0.0009042]
[1724180625405,0.15560818,59390.0,59389.0,0.0009042]
[1724180626040,0.21451102,59390.0,59389.0,0.0009042]
[1724180626240,0.15560818,59390.0,59389.0,0.0009042]
[1724180627098,0.21451102,59390.0,59389.0,0.0009042]
[1724180627762,0.15561621,59390.0,59389.0,0.0009042]
[1724180628411,0.15561618,59390.0,59389.0,0.0009042]
[1724180628648,0.21454818,59390.0,59389.0,0.0009042]
[1724180630199,0.21537018,59390.0,59389.0,0.0009042]
[1724180631503,0.15643818,59390.0,59389.0,0.0009042]
[1724180631929,0.140822,59390.0,59389.0,0.0009042]
[1724180632111,0.1564368,59390.0,59389.0,0.0009042]
[1724180634447,0.15643646,59390.0,59389.0,0.0009042]
[1724180635765,0.140822,59390.0,59389.0,0.0009042]
[1724180635937,0.1564369,59390.0,59389.0,0.0009042]
[1724180636095,0.140822,59390.0,59389.0,0.0009042]
[1724180636328,0.15643702,59390.0,59389.0,0.0009042]
[1724180638530,0.18281495,59390.0,59389.0,0.0009042]
[1724180639736,0.16719993,59390.0,59389.0,0.0009042]
[1724180639887,0.18281458,59390.0,59389.0,0.0009042]
[1724180641529,0.15643665,59390.0,59389.0,0.0009042]
[1724180641778,0.01643665,59390.0,59389.0,0.0009042]
[1724180642144,0.01643665,59390.0,59389.0,0.4050192]
[1724180642358,0.0753697,59390.0,59389.0,0.4050192]
[1724180642559,0.0753697,59390.0,59389.0,0.6744292]
[1724180642757,0.01643665,59390.0,59389.0,0.8109292]
[1724180642957,0.01643665,59390.0,59389.0,1.0803392]
[1724180644485,0.01643665,59390.0,59389.0,1.3507492]
[1724180644703,0.01643665,59390.0,59389.0,1.51472798]
[1724180644903,0.000822,59390.0,59389.0,1.51472798]
[1724180645555,0.000822,59390.0,59389.0,1.3507492]
[1724180648655,0.000822,59390.0,59389.0,1.4507492]
[1724180649079,0.000822,59390.0,59389.0,1.4527492]
[1724180649282,0.000822,59390.0,59389.0,1.4507492]
[1724180649660,0.000822,59390.0,59389.0,1.4527492]
[1724180649813,0.000822,59390.0,59389.0,1.88413798]
[1724180650012,0.000822,59390.0,59389.0,1.88613798]
[1724180650216,0.000822,59390.0,59389.0,1.88413798]
[1724180650596,0.000822,59390.0,59389.0,1.88613798]
[1724180650797,0.000822,59390.0,59389.0,1.88813798]
[1724180651859,0.000822,59390.0,59389.0,1.88413798]
[1724180652063,0.000822,59390.0,59389.0,1.88613798]
[1724180652605,0.000822,59390.0,59389.0,1.88813798]
[1724180653412,0.000822,59390.0,59389.0,1.88413798]
[1724180653618,0.000822,59390.0,59389.0,2.17953798]
[1724180653831,0.000822,59390.0,59389.0,2.18153798]
[1724180653969,0.000822,59390.0,59389.0,3.42693798]
[1724180655102,0.000822,59390.0,59389.0,3.42893798]
[1724180656597,0.00824,59397.0,59396.0,1.088323]
[1724180656797,0.00824,59397.0,59396.0,1.7621333]
[1724180657399,0.00824,59397.0,59396.0,1.382723]
[1724180657606,0.00824,59397.0,59396.0,1.318223]
[1724180657831,0.00824,59397.0,59396.0,0.968845]
[1724180659930,0.02384818,59397.0,59396.0,0.968845]
[1724180661398,0.02384818,59397.0,59396.0,1.238223]
[1724180661601,0.02384818,59397.0,59396.0,1.5004453]
[1724180661806,0.00824,59397.0,59396.0,1.5004453]
[1724180664825,0.00824,59397.0,59396.0,1.7708233]
[1724180665231,0.162,59400.0,59399.0,1.213138]
[1724180665460,0.00824,59406.0,59405.0,0.775505]
[1724180665662,0.00824,59406.0,59405.0,1.3928295]
[1724180665897,0.00824,59406.0,59405.0,1.6621665]
[1724180666701,0.00824,59406.0,59405.0,1.7238665]
[1724180667654,0.1378,59424.0,59412.0,1.381067]
[1724180668254,0.1378,59424.0,59412.0,1.382067]
[1724180668387,0.1378,59424.0,59412.0,1.7897787]
[1724180668597,0.1378,59427.0,59412.0,1.7897787]
[1724180669004,0.1378,59427.0,59412.0,1.8897787]
[1724180669824,0.1378,59427.0,59412.0,1.89983045]
[1724180670456,0.1378,59427.0,59412.0,1.8897787]
[1724180670825,0.1378,59427.0,59412.0,1.8887787]
[1724180671110,0.2407,59420.0,59412.0,1.481067]
[1724180671311,0.2407,59420.0,59412.0,1.419367]
[1724180671511,0.2407,59420.0,59412.0,0.968662]
[1724180671512,0.0601,59417.0,59412.0,0.968662]
[1724180671746,0.08362,59413.0,59412.0,0.403957]
[1724180672012,0.08362,59413.0,59409.0,0.134657]
[1724180672013,0.09922685,59413.0,59409.0,0.134657]
[1724180672225,0.01560685,59412.0,59409.0,0.134657]
[1724180672365,0.01560685,59411.0,59409.0,0.134657]
[1724180672578,0.01560528,59410.0,59409.0,0.134658]
[1724180672961,0.01560525,59410.0,59408.0,0.134661]
[1724180673165,0.01560525,59409.0,59408.0,0.134661]
[1724180673370,0.08362,59413.0,59406.0,0.269331]
[1724180673371,0.01560525,59412.0,59409.0,0.134659]
[1724180673567,0.01560527,59409.0,59407.0,0.134662]
[1724180673681,0.15110499,59408.0,59407.0,0.134662]
[1724180673877,0.15110499,59408.0,59407.0,0.40399]
[1724180674089,0.15110499,59408.0,59407.0,0.134662]
[1724180674310,0.15110499,59408.0,59407.0,0.40399]
[1724180677836,0.15110499,59408.0,59407.0,0.673318]
[1724180678068,0.09100499,59408.0,59407.0,0.673318]
[1724180678417,0.01560499,59408.0,59407.0,0.79721411]
[1724180679212,0.01560499,59408.0,59407.0,0.673318]
[1724180680884,0.01560499,59408.0,59407.0,0.40399]
[1724180681094,0.1374,59412.0,59409.0,0.134658]
[1724180681302,0.01561361,59411.0,59409.0,0.134658]
[1724180681510,0.1374,59412.0,59409.0,0.134658]
[1724180681511,0.01561361,59410.0,59409.0,0.134658]
[1724180684291,0.01561361,59410.0,59409.0,0.403977]
[1724180685878,0.01561361,59411.0,59409.0,0.87537781]
[1724180686078,0.00822,59413.0,59412.0,0.269305]
[1724180686380,0.02383604,59413.0,59412.0,0.673262]
[1724180688257,0.00822,59413.0,59412.0,0.673262]
[1724180688478,0.02383722,59413.0,59412.0,0.673262]
[1724180688689,0.02383722,59413.0,59412.0,1.04356678]
[1724180688895,0.02383722,59413.0,59412.0,1.12596678]
[1724180689310,0.02383722,59413.0,59412.0,1.19036678]
[1724180689523,0.02383722,59413.0,59412.0,1.19136678]
[1724180689524,0.00822,59413.0,59412.0,1.19136678]
[1724180689755,0.00822,59413.0,59412.0,1.46267178]
[1724180690380,0.00822,59413.0,59412.0,1.46467178]
[1724180690585,0.00822,59413.0,59412.0,1.46267178]
[1724180691273,0.00822,59413.0,59412.0,1.46067178]
[1724180693151,0.00822,59413.0,59412.0,1.47090466]
[1724180695268,0.00822,59413.0,59412.0,1.359672]
[1724180695485,0.00822,59413.0,59412.0,1.089367]
[1724180695732,0.00822,59413.0,59412.0,0.942567]
[1724180695954,0.02383593,59413.0,59412.0,0.942567]
[1724180697982,0.02383051,59413.0,59412.0,0.942567]
[1724180698857,0.02383051,59413.0,59412.0,1.00337877]
[1724180699057,0.02383051,59413.0,59412.0,0.673262]
[1724180700130,0.02383009,59413.0,59412.0,0.673262]
[1724180700365,0.10673009,59413.0,59412.0,0.673262]
[1724180700780,0.10672991,59413.0,59412.0,0.673262]